Cogmind - Beta 16.1 @@@ ROGUE MODE // 2026.04.08 @ 20:18:33 Player: Ammie Result: Destroyed by G-47 Trooper with Particle Gun Performance ------------- Evolutions (1) 500 Regions Visited (2) 400 Robots Destroyed (34) 170 Value Destroyed (795) 795 Prototype IDs (3) 60 Alien Tech Used (0) 0 Bonus (0) 0 TOTAL SCORE: 1925 Bonus ------- None Cogmind --------- Core Integrity 0/400 Matter 252/300 Energy 258/275 System Corruption 0% Temperature Cool (29) Movement Core (400) Ox7 Location -9/Materials Parts ------- > --- POWER (1) -------- Deuterium Engine > --- PROPULSION (3) --- (None) > --- UTILITY (3) ------ Heat Sink Disposable Heat Sink Small Storage Unit > --- WEAPON (2) ------- Beam Rifle Grenade Launcher > --- INVENTORY (8) ---- Deuterium Engine Deuterium Engine Light Deuterium Engine EM Shotgun Minigun Peak State ------------ > --- POWER ------------ Deuterium Engine > --- PROPULSION ------- Hover Unit Hover Unit Hover Unit > --- UTILITY ---------- Heat Sink Disposable Heat Sink Small Storage Unit > --- WEAPON ----------- Spread Laser Minigun > --- INVENTORY -------- Deuterium Engine Deuterium Engine Light Deuterium Engine Aluminum Leg Aluminum Leg Aluminum Leg Minigun Grenade Launcher [Rating: 16] Favorites ----------- Power Ion Engine Engine Ion Engine Propulsion Aluminum Leg Leg Aluminum Leg Hover Unit Hover Unit Utility Small Storage Unit Device Disposable Heat Sink Storage Small Storage Unit Weapon Spread Laser Energy Gun Spread Laser Energy Cannon Light EM Pulse Cannon Ballistic Gun Light Assault Rifle Launcher Grenade Launcher Build | -11 -10 -9 ------- Run | Yrd Mat Mat Slots Evolved 2 | . . 2 Power . | . . . Propulsion 1 | . . 1 Utility 1 | . . 1 Weapon . | . . . Parts Attached 30 | 6 2 22 Power 3 | 1 . 2 Engine 3 | 1 . 2 Core . | . . . Reactor . | . . . Propulsion 9 | 2 1 6 Treads . | . . . Leg 5 | 2 1 2 Wheel . | . . . Hover 4 | . . 4 Flight . | . . . Utility 7 | 1 1 5 Device 6 | . 1 5 Storage 1 | 1 . . Processor . | . . . Hackware . | . . . Protection . | . . . Artifact . | . . . Weapon 11 | 2 . 9 Energy Gun 5 | 1 . 4 Energy Cannon 1 | . . 1 Ballistic Gun 4 | 1 . 3 Ballistic Cannon . | . . . Launcher 1 | . . 1 Special Weapon . | . . . Impact Weapon . | . . . Slashing Weapon . | . . . Piercing Weapon . | . . . Special Melee Weapon . | . . . Unidentified Prototypes 1 | . . 1 Parts Lost 8 | . . 8 Power 1 | . . 1 Propulsion 4 | . . 4 Utility 1 | . . 1 Weapon 2 | . . 2 Highest Loss Streak 4 | . . 4 To Critical Strikes . | . . . Average Backups 5 | 1 3 6 Power 1 | . 1 2 Propulsion 1 | . . 1 Utility . | . . . Weapon 2 | . 1 2 Tool/Special . | . . . Unused Backups 7 | . . 7 Power 5 | . . 5 Propulsion . | . . . Utility . | . . . Weapon 2 | . . 2 Tool/Special . | . . . Average Slot Usage (%) 93 | . 92 94 Engine 11 | . 14 10 Leg 23 | . 28 21 Hover 6 | . . 8 Device 15 | . 6 19 Storage 11 | . 14 11 Energy Gun 11 | . 14 10 Energy Cannon 3 | . . 4 Ballistic Gun 8 | . 14 6 Peak Build Rating 16 | 6 7 16 Average Rating 10 | 4 6 12 On Entrance 4 | . 6 7 Avg Prop Armor Cover (%) . | . . . Naked Turns . | . . . Heaviest Build 25 | 12 13 25 Greatest Support 30 | 20 20 30 Greatest Overweight (x) 6 | 1 . 6 Average Overweight (x) . | . . . Largest Inventory Capacity 8 | 8 8 8 Average Capacity 7 | 6 8 8 Most Carried 8 | 2 5 8 Average Carried 5 | 1 3 6 Final Capacity 8 | 8 8 8 Final Carried 5 | 2 5 5 Class Distribution -------------------- 93% | Mutant 6% | Scavenger-Mutant Dominant Class ---------------- Mutant | -10/Materials Mutant | -9/Materials Resources | -11 -10 -9 ----------- Run | Yrd Mat Mat Matter Collected 798 | 213 98 487 Remotely . | . . . Salvage Created 1008 | . 135 873 Parts 71 | . 11 60 Haulers Intercepted 3 | . . 3 Recyclers Shooed . | . . . Parts Field Recycled . | . . . Retrieved Matter . | . . . Parts Self-Destructed . | . . . Prevented . | . . . Parts Restored . | . . . Kills | -11 -10 -9 ------- Run | Yrd Mat Mat Combat Hostiles Destroyed 26 | . 7 19 Guns 18 | . 7 11 Cannons 8 | . . 8 Classes Destroyed 8 | . 2 6 Worker 1 | . . 1 Hauler 3 | . . 3 Operator 1 | . . 1 Watcher 3 | . . 3 Swarmer 10 | . 6 4 Grunt 11 | . 1 10 Duelist 1 | . . 1 Sentry 4 | . . 4 Best Kill Streak 5 | . 3 5 Combat Bots Only 4 | . 3 4 Max Kills in Single Turn 2 | . 1 2 Gunslinging . | . . . Exploded . | . . . Melee . | . . . Uniques/NPCs Destroyed . | . . . Combat | -11 -10 -9 -------- Run | Yrd Mat Mat Hostile Shots Fired 207 | . 48 159 Missed 71 | . 11 60 Hits 136 | . 37 99 Melee 6 | . . 6 Projectile 130 | . 37 93 Critical Strikes 2 | . . 2 Damage Taken 1650 | . 307 1343 Core 481 | . 74 407 Absorbed by Shields . | . . . Core Remaining (%) 85 | 100 70 . Volleys Fired 130 | . 31 99 Largest 2 | . 2 2 Hottest 121 | . 60 121 Shots Fired 217 | . 58 159 Gun 196 | . 58 138 Cannon 20 | . . 20 Launcher 1 | . . 1 Special . | . . . Kinetic 112 | . 31 81 Thermal 74 | . 27 47 Explosive 1 | . . 1 Electromagnetic 30 | . . 30 Robot Hit Streak 10 | . 6 10 Robot Miss Streak 10 | . 5 10 Penetration Max . | . . . Secondary Targets 2 | . 1 1 Max Gunslinging Chain 1 | . 1 1 Shots Hit Robots 135 | . 26 109 Core Hits 85 | . 10 75 Critical Kills . | . . . Critical Parts Destroyed . | . . . Critical Strikes . | . . . Melee Attacks . | . . . Impact . | . . . Slashing . | . . . Piercing . | . . . Sneak Attacks . | . . . Combat Hostiles . | . . . Follow-up Attacks . | . . . Damage Inflicted 2026 | . 242 1784 Guns 1597 | . 242 1355 Cannons 320 | . . 320 Explosions 104 | . . 104 Melee . | . . . Ramming 5 | . . 5 Kinetic 845 | . 101 744 Thermal 664 | . 141 523 Explosive 69 | . . 69 Electromagnetic 443 | . . 443 Impact . | . . . Slashing . | . . . Piercing . | . . . Highest Corruption 3 | . 3 . Average Corruption 2 | . 2 . Corruption Purged . | . . . Corruption Blocked . | . . . Overload Shots . | . . . Overflow Damage 11 | . . 11 Projectiles 11 | . . 11 Explosions . | . . . Melee . | . . . Knockbacks . | . . . Impact . | . . . Kinetic . | . . . Secondary . | . . . Self-Inflicted Damage 13 | . . 13 Shots 1 | . . 1 Rammed . | . . . Targets Rammed 1 | . . 1 Kicked 1 | . . 1 Crushed . | . . . Highest Temperature 162 | . 70 162 Average Temperature 33 | . 25 36 Received Heat Transfer 561 | . 30 531 Siege Activations . | . . . Martial Activations . | . . . Shielding Activations . | . . . Robots Disrupted . | . . . Combat Hostiles . | . . . Robots Corrupted . | . . . Combat Hostiles . | . . . Parts Fried 1 | . . 1 Impact Corruptions . | . . . Robots Melted . | . . . Combat Hostiles . | . . . Parts Melted . | . . . Heat Transferred 1147 | . 325 822 Parts Sabotaged . | . . . Parts Stolen . | . . . Parts Stripped . | . . . Power Chain Reactions 1 | . . 1 Alert | -11 -10 -9 ------- Run | Yrd Mat Mat Maximum Alert Level 1 | . . 1 Low Security (%) 82 | 100 100 75 Level 1 17 | . . 24 Level 2 . | . . . Level 3 . | . . . Level 4 . | . . . Level 5 . | . . . High Security . | . . . Max Security . | . . . Peak Influence 267 | . 85 267 Initial 25 | . . 25 Average 98 | . 30 130 Influence Increases 895 | . 209 686 Destroy 0b10 Robot/C 520 | . 140 380 Destroy 0b10 Robot/NC 40 | . . 40 Destroy Leader 132 | . 30 102 Successful Hack 14 | . 9 5 Disable Machine 15 | . . 15 Destroy Structure 9 | . . 9 Lose Combat Pursuer 165 | . 30 135 Influence Decreases 653 | . 148 505 Entered New Map 36 | . . 36 Time Decay 542 | . 148 394 Lost Part 75 | . . 75 Squads Dispatched 4 | . 1 3 Investigation 2 | . . 2 Extermination . | . . . Reinforcement 2 | . 1 1 Assault . | . . . Garrison . | . . . Intercept . | . . . Searches Triggered . | . . . Construction Impeded . | . . . Haulers Reinforced . | . . . Active Scanning Responses . | . . . Cargo Convoy Interrupts . | . . . Stealth | -11 -10 -9 --------- Run | Yrd Mat Mat Distress Signals 6 | . . 6 Communications Jammed . | . . . Distress Signals . | . . . Times Spotted 54 | . 12 42 Peak Tracking Total 9 | . 4 9 Tactical Retreats 8 | . 1 7 Traps | -11 -10 -9 ------- Run | Yrd Mat Mat Traps Triggered 4 | . 2 2 Indirectly . | . . . Trap Hack Attempts . | . . . Triggered . | . . . Disarmed . | . . . Reprogrammed . | . . . Reused . | . . . Traps Extracted . | . . . Installed . | . . . Triggered . | . . . Machines | -11 -10 -9 ---------- Run | Yrd Mat Mat Machines Disabled 1 | . . 1 Max in Single Turn 1 | . . 1 Machines Repaired . | . . . Machines Dismantled . | . . . Machines Sabotaged . | . . . Overloaded Fab Kills . | . . . Hacking | -11 -10 -9 --------- Run | Yrd Mat Mat Machines Accessed 4 | . 3 1 Terminals 4 | . 3 1 Fabricators . | . . . Repair Stations . | . . . Recycling Units . | . . . Scanalyzers . | . . . Garrison Access . | . . . Total Hacks 8 | . 5 3 Successful 5 | . 4 1 Failed 3 | . 1 2 Catastrophic . | . . . Database Lockouts . | . . . Manual 1 | . 1 . Terminals 8 | . 5 3 Fabricators . | . . . Repair Stations . | . . . Recycling Units . | . . . Scanalyzers . | . . . Garrison Access . | . . . Terminal Hacks 5 | . 4 1 Prototype ID Bank 1 | . 1 . Locate Traps 1 | . 1 . Transport Status 1 | . 1 . Investigation Status 1 | . 1 . Hauler Manifests 1 | . . 1 Fabricator Hacks . | . . . Repair Station Hacks . | . . . Recycling Unit Hacks . | . . . Scanalyzer . | . . . Garrison Access Hacks . | . . . Unauthorized Hacks . | . . . Terminals . | . . . Fabricators . | . . . Repair Stations . | . . . Recycling Units . | . . . Scanalyzers . | . . . Garrison Access . | . . . Data Cores Recovered 1 | . . 1 Used . | . . . Hacking Detections . | . . . Full Trace Events . | . . . Feedback Events . | . . . Feedback Blocked . | . . . Robot Schematics Acquired . | . . . Robots Built . | . . . Authchips . | . . . Time . | . . . Total Robot Build Rating . | . . . Part Schematics Acquired . | . . . Parts Built . | . . . Authchips . | . . . Time . | . . . Total Part Build Rating . | . . . Part Studies Acquired . | . . . Parts Repaired . | . . . Time . | . . . Parts Recycled . | . . . Recycled Matter . | . . . Retrieved Matter . | . . . Retrieved Components . | . . . Parts Scanalyzed . | . . . Part Schematics Acquired . | . . . Parts Damaged . | . . . Bothacking | -11 -10 -9 ------------ Run | Yrd Mat Mat Used RIF Installer . | . . . Robots Hacked . | . . . Non-combat . | . . . Combat . | . . . Robot Hacks Applied . | . . . Relay Couplers Released . | . . . Fabnet Peak Effective % . | . . . Robots Rewired . | . . . Allies Hacked . | . . . Hacks Repelled . | . . . Allies | -11 -10 -9 -------- Run | Yrd Mat Mat Total Allies . | . . . Largest Group . | . . . Highest-Rated Group . | . . . Highest-Rated Ally . | . . . Total Orders . | . . . Ally Attacks . | . . . Total Damage . | . . . Kills . | . . . Allies Corrupted . | . . . Allies Melted . | . . . Intel | -11 -10 -9 ------- Run | Yrd Mat Mat Active Infowar (turns) 786 | . 207 579 Seismic 786 | . 207 579 Robot Analysis Total . | . . . Derelict Logs Recovered . | . . . Drone Launches . | . . . Drone Recoveries . | . . . Exploration | -11 -10 -9 ------------- Run | Yrd Mat Mat Turns Passed 1560 | 65 416 1079 Spaces Moved 877 | 46 245 586 Core 4 | 3 . 1 Treads . | . . . Legs 696 | 43 245 408 Wheels . | . . . Hover 177 | . . 177 Flight . | . . . Fastest Speed 50 | 50 120 112 Average Speed 119 | 120 120 119 Slowest Speed 350 | 190 120 350 Overloaded Moves . | . . . Propulsion Burnouts . | . . . Robots Hopped . | . . . Potential Cave-ins . | . . . Cave-ins Triggered . | . . . Exploration Rate (%) 36 | 3 64 42 Regions Visited 2 Branch Regions . Pre-discovered Areas . | . . . Known Exits Taken . | . . . Unknown Exits Taken 2 | 1 1 . Scrap Searched . | . . . Spaces Dug . | . . . Terrain Destroyed 9 | . . 9 Melee . | . . . Projectile . | . . . AOE 9 | . . 9 Terrain Rammed . | . . . Walls Destroyed . | . . . Machines Disabled . | . . . Actions | -11 -10 -9 --------- Run | Yrd Mat Mat Total 1195 | 53 314 828 Wait 128 | . 35 93 Move 875 | 45 244 586 Hop . | . . . Pick Up 14 | 2 2 10 Fast Attach 11 | 6 1 4 Attach 4 | . . 4 Detach . | . . . Swap 19 | . 1 18 Drop 13 | . . 13 Fire 130 | . 31 99 Melee . | . . . Ram . | . . . Kick 1 | . . 1 Crush . | . . . Escape Stasis . | . . . Rewire . | . . . Trap . | . . . Miscellaneous . | . . . Route ------- -11/Scrapyard -10/Materials (discovered 3 exits: *Mat x2 / [*Min]) -9/Materials (discovered 2 exits: [*Mat] / [*Min]) History --------- Turn | Location | Event 25 | -11/Scrapyard | Discovered new exit (range 15) 66 | -11/Scrapyard | Entered Materials 209 | -10/Materials | Discovered new exit (range 15) 294 | -10/Materials | Discovered new exit (range 9) 315 | -10/Materials | Build established: Mutant 450 | -10/Materials | Discovered new exit (range 15) 482 | -10/Materials | Entered another Materials area 482 | -9/Materials | Evolved 2 slots: Propulsion x1, Utility x1 490 | -9/Materials | Discovered new exit (range 7) 1143 | -9/Materials | Discovered new exit (range 16) 1451 | -9/Materials | Core integrity fell below 50% 1474 | -9/Materials | Core integrity fell below 20% 1502 | -9/Materials | Lost 4 parts (2n2w) 1561 | -9/Materials | Destroyed by G-47 Trooper with Particle Gun Last Messages --------------- 01490_ K-01 Serf collects debris. 01495_ Y-45 Defender destroyed. 01495_ K-01 Serf collects debris. 01501_ Acquired Hover Unit. 01502_ K-01 Serf collects debris. 01503_ Acquired 58 matter. 01506_ Acquired Beam Rifle. 01507_ K-01 Serf collects debris. 01507_ R-06 Scavenger collects Aluminum Leg. 01511_ R-06 Scavenger collects Katana. 01531_ W-16 Scout destroyed. 01544_ Triggered Alarm Trap. 01544_ An alarm sounds. 01544_ ALERT: Alarm triggered, dispatching investigation squad. 01546_ Hover Unit destroyed. 01547_ U-05 Engineer lays Concrete. 01557_ U-05 Engineer destroyed. 01558_ K-01 Serf collects debris. 01559_ Hover Unit destroyed. 01560_ U-05 Engineer lays Concrete. Map ----- +----------------------------------------------------+ | ?????????????????????????????????????????????????? | | ?????????????????????????????????????????????????? | | ?????????????????????????????????????????????????? | | ?????????????????????????????????????????????????? | | ?????????????????????????????????????????????????? | | ?????????????????????????????????????????????????? | | ?????????????????????????????????????????????????? | | ?????????????????????????????????????????????????? | | ?????????????????????????????????????????????????? | | ?????????????????????????????????????????????????? | | ?????????????????????????????????????????????????? | | ?????????????????????????????????????????????????? | | ?????????????????#???????????????????????????????? | | ??????????????? ??????????????????????????????? | | ????????????? ??????????????????????????????? | | ????????????? ?????????????????????????????? | | ???????????? ?????????????????????????????? | | ?????????????# =][ ????????????????????????????? | | ?????????????# =] ????????????????????????????? | | ?????????????# =] ???????????????????????????? | | ?????????????# u???????????????????????????? | | ?????????????# ##???????????#######??????? | | ?????????????# !%g u# ############ #??????? | | ?????????????+ ! g * #??????? | | ?????????????# %u !Y #??????? | | ?????????????+ Y @ kt% m #??????? | | ?????????????# ## ######+###### #??????? | | ??????????????????####???# % ####+#####????? | | ?????????????????????????#| "" # #????? | | ?????????????????????????# """ # #????? | | ?????????????????????????# """ % # #????? | | ?????????????????????????# """ # "" #????? | | ?????????????????????????#! "*" ![# ! "" #????? | | ########################?# %/!= + T" #????? | | # ! # #?# * !# "" #????? | | # # "" #?##/######## "" #????? | | # """ """ """ # "Y ! #??# #??????# #????? | | # """ """ """ # "" ##?# #################????? | | #??"" """ ""??# ! ??# ## = #????????????? | | #???? ????? ???## ## #????????????? | | #########+#########+###### # """ #????????????? | | % + """ #????????????? | | ########+###### # """ #????????????? | | ! #????? ???## ## #????????????? | | ## ####+####????# """ #??# #########????????????? | | ?# ## #?????# "Y" #??# #????????????????????? | | ?# ## #?????# #??# #????????????????????? | | ?# ## """ #?????# #??# #????????????????????? | | ?# ## """ #?????#| #??# #????????????????????? | | ?# ## """ ###???########??# #????????????????????? | +----------------------------------------------------+ Best States ------------- Heat Dissipation 38 Coolant Potential 50 Energy Generation 14 Energy Capacity 275 Matter Stores 300 Matter Capacity 300 Sight Range 16 Terrain Scan Density 10 Evasion (%) 55 Item Schematics ----------------- None Robot Schematics ------------------ None Fabricated ------------ Nothing Repaired ---------- Nothing Studied --------- None Alien Tech Used ----------------- None Achievements -------------- None Challenges ------------ None Game ------ Seed SniperSpacefoldCannon Manual? 0 Play Time 00:17:00 Cumulative 44.4 hours Start 2026.04.08 @ 20:04:46 End 2026.04.08 @ 20:18:33 Sessions 1 Manual Loads 0 Difficulty Rogue Special Mode None Game No. 77 Rogue 77 Adventurer 0 Explorer 0 Win Type - Total 0 Types 0/0/0/0/0/0/0/0/0/0 Lore% 16 Gallery% 24 Achievement% 20 Wizard Run 0 Options --------- Layout 0 ASCII 0 Keyboard 0 Movement Mouse Keybinds 0 Fullscreen 1 Font 24/Smallcaps Map View 38x25 Zoom Use 100% Tactical HUD 1 Map Filters NONE Filters NONE Steam 1 RUN: 9a787d28-128c-4aa0-b4c4-69842d375826